bitfinex/quotes_SOLUSD_20250814
["timestamp","ask_amount","ask_price","bid_price","bid_amount"]
[1755198076718,0.06,193.63,193.62,46.62225297]
[1755198076921,0.06,193.63,193.62,45.94225297]
[1755198078795,0.06,193.63,193.62,51.78700867]
[1755198079300,0.06,193.63,193.62,51.10700867]
[1755198079724,0.06,193.63,193.62,51.78700867]
[1755198080532,0.06,193.63,193.62,51.10700867]
[1755198081206,0.06,193.63,193.62,51.78700867]
[1755198082203,0.06,193.65,193.64,41.10621557]
[1755198082401,0.06,193.65,193.64,87.60846854]
[1755198082604,0.06,193.65,193.64,68.85049522]
[1755198083630,0.06,193.65,193.64,42.85049522]
[1755198085327,0.06,193.65,193.64,48.01471748]
[1755198085510,0.06,193.65,193.64,130.60093305]
[1755198086331,0.06,193.65,193.64,63.80093305]
[1755198086631,0.06,193.68,193.67,15.10621557]
[1755198086942,0.06,193.69,193.67,15.10621557]
[1755198086943,1e-08,193.69,193.67,105.58354824]
[1755198087133,0.06,193.7,193.68,21.29671079]
[1755198087424,0.06,193.7,193.69,83.95671079]
[1755198087927,0.06,193.7,193.69,68.85049522]
[1755198088706,0.06,193.7,193.69,71.81306196]
[1755198088911,0.06,193.7,193.69,76.97595111]
[1755198090205,0.06,193.7,193.69,50.97595111]
[1755198090524,0.06,193.7,193.69,45.79306196]
[1755198090910,0.06,193.7,193.69,50.95595111]
[1755198091105,0.06,193.7,193.69,45.79306196]
[1755198093422,0.78,193.7,193.69,37.32]
[1755198093833,0.06,193.7,193.69,45.79306196]
[1755198094340,0.78,193.7,193.69,45.79306196]
[1755198094841,5.94262261,193.7,193.68,8.47306196]
[1755198095019,0.72,193.69,193.68,37.32]
[1755198095336,0.06,193.7,193.68,45.79306196]
[1755198095719,0.78,193.7,193.69,8.47306196]
[1755198095916,0.06,193.7,193.69,8.47306196]
[1755198096335,0.78,193.7,193.69,8.47306196]
[1755198096844,0.78,193.7,193.69,8.50306196]
[1755198097046,0.06,193.7,193.69,8.50306196]
[1755198097436,0.78,193.7,193.69,8.50306196]
[1755198097755,0.06,193.7,193.69,8.50306196]
[1755198099227,0.06,193.7,193.69,9.21306196]
[1755198099749,0.06,193.7,193.69,13.66595111]
[1755198100330,0.06,193.7,193.69,8.50306196]
[1755198100954,0.78,193.7,193.69,0.03]
[1755198101120,5.94262261,193.7,193.69,0.03]
[1755198101756,0.78,193.7,193.69,0.03]
[1755198101923,0.06,193.7,193.69,45.82306196]
[1755198102318,0.06,193.7,193.69,38.06]
[1755198102628,0.06,193.7,193.69,46.53306196]
[1755198103023,0.06,193.7,193.69,62.15556644]
[1755198103223,0.06,193.71,193.7,20.26883818]
[1755198103424,0.06,193.71,193.7,29.45190014]
[1755198103953,0.2,193.73,193.72,41.10621557]
[1755198104153,0.06,193.76,193.75,41.10621557]
[1755198104489,0.06,193.79,193.75,88.14540656]
[1755198104620,0.06,193.79,193.78,23.57927753]
[1755198104821,0.06,193.79,193.78,62.14532665]
[1755198105035,0.06,193.79,193.78,45.81306196]
[1755198105240,0.06,193.79,193.78,14.34355323]
[1755198105442,0.06,193.79,193.78,50.97355323]
[1755198105833,0.06,193.79,193.78,51.68355323]
[1755198106345,0.06,193.79,193.78,14.34355323]
[1755198106536,0.06,193.79,193.78,45.79306196]
[1755198106740,0.06,193.79,193.78,8.47306196]
[1755198106942,0.75,193.79,193.72,5.16208961]
[1755198107139,0.75,193.79,193.74,8.47306196]
[1755198107354,0.75,193.79,193.75,37.32]
[1755198107557,9.22306196,193.79,193.75,37.32]
[1755198107937,0.69,193.78,193.75,37.32]
[1755198108849,5.16075759,193.77,193.72,8.47306196]
[1755198109039,0.06,193.79,193.76,8.47306196]
[1755198109245,0.06,193.79,193.78,8.47306196]
[1755198110148,0.06,193.79,193.78,9.18306196]
[1755198110941,0.06,193.79,193.78,14.34355323]
[1755198111272,0.06,193.79,193.78,29.4497688]
[1755198112762,0.06,193.79,193.78,13.63355323]
[1755198113450,0.06,193.79,193.78,14.34355323]
[1755198114571,0.06,193.8,193.79,15.10621557]
[1755198114767,0.06,193.8,193.79,69.47233949]
[1755198114972,0.06,193.8,193.79,58.39644055]
[1755198115173,0.06,193.8,193.79,68.93311351]
[1755198117063,0.2,193.85,193.79,188.60276042]
[1755198117372,0.2,193.85,193.84,8.47306196]
[1755198117568,0.2,193.85,193.84,45.85306196]
[1755198118345,0.2,193.85,193.84,45.83306196]
[1755198121546,0.2,193.85,193.84,51.64195589]
[1755198122584,0.2,193.85,193.79,15.10621557]
[1755198122879,0.88,193.85,193.83,8.47306196]
[1755198123098,0.68,193.84,193.83,45.83306196]
[1755198123587,0.68,193.84,193.8,8.47306196]
[1755198123760,0.68,193.84,193.8,37.36]
[1755198124094,0.68,193.84,193.8,45.83306196]
[1755198124783,5.15916008,193.83,193.8,45.83306196]
[1755198124991,0.68,193.82,193.8,45.83306196]
[1755198127470,9.15306196,193.82,193.76,37.38]
[1755198127666,0.68,193.82,193.76,45.85306196]
[1755198127857,0.68,193.81,193.76,45.85306196]
[1755198128074,0.68,193.8,193.76,45.85306196]
[1755198128383,0.68,193.79,193.75,8.47306196]
[1755198128581,8.47306196,193.78,193.73,0.03]
[1755198128787,13.6340859,193.76,193.73,0.03]
[1755198129296,5.16102394,193.76,193.75,0.03]
[1755198129464,13.6340859,193.76,193.75,0.03]
[1755198129789,14.3140859,193.76,193.75,0.03]
[1755198130288,26.0,193.74,193.73,0.03]
[1755198130487,53.70855995,193.74,193.73,0.03]
[1755198130693,58.87011667,193.74,193.73,0.03]
[1755198131064,58.87011667,193.74,193.73,1e-08]
[1755198132056,58.87011667,193.74,193.71,1e-08]
[1755198132057,62.70483343,193.74,193.71,1e-08]
[1755198132260,23.57927753,193.72,193.71,1e-08]
[1755198132456,24.25927753,193.72,193.71,1e-08]
[1755198132775,29.42136714,193.72,193.71,1e-08]
[1755198132974,32.87063287,193.72,193.71,1e-08]
[1755198133185,41.10621557,193.7,193.69,1e-08]
[1755198133390,53.70854326,193.7,193.69,1e-08]
[1755198133563,57.54116691,193.7,193.69,1e-08]
[1755198134194,57.54116691,193.7,193.67,1e-08]
[1755198134195,15.10621557,193.69,193.67,1e-08]
[1755198134399,41.78621557,193.68,193.67,1e-08]
[1755198134772,46.94937129,193.68,193.67,1e-08]
[1755198135377,55.42243325,193.68,193.67,1e-08]
[1755198136372,46.94937129,193.68,193.67,1e-08]
[1755198136578,55.42243325,193.68,193.67,1e-08]
[1755198139580,71.77028965,193.68,193.63,0.03]
[1755198139790,34.47306196,193.64,193.63,1e-08]
[1755198140009,72.49306196,193.64,193.63,1e-08]
[1755198140815,87.59927753,193.64,193.63,1e-08]
[1755198141267,92.76349979,193.64,193.63,1e-08]
[1755198142301,15.10621557,193.63,193.59,1e-08]
[1755198142592,49.57927753,193.6,193.59,1e-08]
[1755198142909,87.59927753,193.6,193.59,1e-08]
[1755198143272,55.42456678,193.6,193.59,1e-08]
[1755198143474,31.16528925,193.6,193.59,0.65000001]
[1755198143879,37.34,193.62,193.59,0.65000001]
[1755198144090,37.34,193.62,193.59,9.12306197]
[1755198144296,37.34,193.62,193.59,1e-08]
[1755198144501,42.50490587,193.62,193.59,1e-08]
[1755198144685,50.97796783,193.62,193.59,1e-08]
[1755198144880,42.50490587,193.62,193.59,0.65000001]
[1755198145769,37.48,193.64,193.6,9.12306196]
[1755198145970,37.48,193.64,193.61,9.12306196]
[1755198146177,26.0,193.62,193.61,0.65]
[1755198146501,26.0,193.62,193.61,0.68]
[1755198147199,26.0,193.62,193.61,0.03]
[1755198147496,55.42403323,193.62,193.61,0.03]
[1755198147883,54.74403323,193.62,193.61,0.03]
[1755198148186,77.13781766,193.62,193.61,0.03]
[1755198148375,92.92403323,193.62,193.61,0.03]
[1755198148997,31.1647557,193.62,193.61,0.03]
[1755198149297,92.22403323,193.62,193.61,0.03]
[1755198149485,92.90403323,193.62,193.61,0.03]
[1755198151789,92.22403323,193.62,193.61,0.03]
[1755198152384,92.89403323,193.62,193.61,0.03]
[1755198154894,92.22403323,193.62,193.61,0.03]
[1755198155296,92.22403323,193.62,193.61,0.75]
[1755198155297,68.6447557,193.62,193.61,0.75]
[1755198155505,8.47306196,193.65,193.61,0.75]
[1755198155688,42.54424413,193.64,193.61,0.03]
[1755198155888,26.0,193.62,193.61,0.03]
[1755198156578,26.0,193.62,193.61,0.75]
[1755198156785,37.38,193.64,193.61,9.22306196]
[1755198156980,31.16374598,193.66,193.62,8.47306196]
[1755198157284,26.0,193.64,193.63,0.72]
[1755198157490,26.0,193.64,193.61,0.75]
[1755198157705,26.0,193.64,193.61,0.03]
[1755198157706,31.16431783,193.64,193.61,0.03]
[1755198157886,8.47306196,193.62,193.61,0.03]
[1755198158086,9.14306196,193.62,193.61,0.03]
[1755198158283,24.24927753,193.62,193.61,0.03]
[1755198158710,23.57927753,193.62,193.61,0.03]
[1755198159112,15.10621557,193.62,193.61,0.03]
[1755198159314,24.24927753,193.62,193.61,0.03]
[1755198160016,28.74403323,193.62,193.61,0.03]
[1755198160194,5.1647557,193.62,193.61,0.03]
[1755198160915,37.4,193.63,193.61,0.03]
[1755198161114,31.16443591,193.64,193.61,0.03]
[1755198161815,31.16443591,193.64,193.61,0.75]
[1755198162214,0.06,193.62,193.61,0.75]
[1755198162519,23.63927753,193.62,193.61,0.03]
[1755198162891,24.30927753,193.62,193.61,0.03]
[1755198164086,29.47403323,193.62,193.61,0.03]
[1755198164499,32.90851741,193.62,193.61,1e-08]
[1755198165112,29.47403323,193.62,193.61,1e-08]
[1755198165618,32.90875092,193.62,193.61,1e-08]
[1755198166520,36.72915436,193.62,193.61,1e-08]
[1755198167217,36.73401283,193.62,193.61,1e-08]
[1755198167526,36.73401283,193.62,193.56,1e-08]
[1755198167527,41.10621557,193.59,193.56,1e-08]
[1755198167816,26.0,193.56,193.55,1e-08]
[1755198168012,79.80359571,193.56,193.55,1e-08]
[1755198168216,94.90981128,193.56,193.55,1e-08]
[1755198168421,99.40616796,193.56,193.55,1e-08]
[1755198168812,100.07616796,193.56,193.55,1e-08]
[1755198169410,99.40616796,193.56,193.55,1e-08]
[1755198170422,99.41462325,193.56,193.55,1e-08]
[1755198170621,100.08462325,193.56,193.54,1e-08]
[1755198170821,15.10621557,193.54,193.53,1e-08]
[1755198171021,68.87826657,193.54,193.53,1e-08]
[1755198171208,73.18208188,193.54,193.53,1e-08]
[1755198172130,74.04515713,193.54,193.53,1e-08]
[1755198172321,78.34897244,193.54,193.53,1e-08]
[1755198173336,74.04515713,193.54,193.53,1e-08]
[1755198173500,49.57927753,193.52,193.51,1e-08]
[1755198173705,94.87826657,193.52,193.51,1e-08]
[1755198173902,100.63709838,193.52,193.51,1e-08]
[1755198174330,105.81424809,193.52,193.51,1e-08]
[1755198174510,100.04569112,193.52,193.51,1e-08]
[1755198175427,102.11431812,193.52,193.51,1e-08]
[1755198176134,20.27390716,193.51,193.5,1e-08]
[1755198176330,42.45433055,193.51,193.5,1e-08]
[1755198177051,36.68595816,193.51,193.5,1e-08]
[1755198177715,42.45117556,193.51,193.5,1e-08]
[1755198177921,73.37595816,193.51,193.5,1e-08]
[1755198178127,77.69935964,193.51,193.5,0.72000001]
[1755198178331,58.26974259,193.51,193.5,0.72000001]
[1755198178514,73.37595816,193.51,193.5,1e-08]
[1755198179415,73.37595816,193.51,193.5,0.72000001]
[1755198180342,7.26898904,193.51,193.5,0.72000001]
[1755198180513,9.48970917,193.57,193.5,14.36102062]
[1755198180717,3.84010505,193.56,193.54,8.47306196]
[1755198181035,37.38,193.57,193.55,0.15]
[1755198181217,3.83977068,193.56,193.54,8.47306196]
[1755198181412,42.5460906,193.57,193.53,8.47306196]
[1755198181612,42.5460906,193.57,193.5,5.16795866]
[1755198181829,42.5460906,193.57,193.53,8.62306196]
[1755198182038,42.5460906,193.57,193.53,8.47306196]
[1755198182343,42.5460906,193.57,193.54,0.15]
[1755198183616,42.5460906,193.57,193.54,8.62306196]
[1755198184228,5.16715754,193.53,193.5,0.15000001]
[1755198184541,13.6402195,193.53,193.5,1e-08]
[1755198184723,45.85306196,193.52,193.5,1e-08]
[1755198185323,37.38,193.52,193.5,1e-08]
[1755198186144,42.54715754,193.53,193.5,1e-08]
[1755198186448,49.57927753,193.51,193.5,1e-08]
[1755198186618,60.95927753,193.51,193.5,1e-08]
[1755198186820,61.65927753,193.51,193.5,1e-08]
[1755198187725,45.85306196,193.51,193.5,1e-08]
[1755198187921,37.38,193.51,193.5,1e-08]
[1755198188122,45.85306196,193.51,193.5,1e-08]
[1755198188319,51.02075355,193.51,193.5,1e-08]
[1755198188522,42.54769159,193.51,193.5,1e-08]
[1755198189517,5.16769159,193.51,193.5,1e-08]
[1755198189732,68.56750032,193.52,193.5,1e-08]
[1755198190634,77.04056228,193.52,193.5,1e-08]
[1755198191228,68.56750032,193.52,193.5,1e-08]
[1755198191938,68.56750032,193.52,193.5,1500.00000001]
[1755198192452,31.16750032,193.52,193.5,1500.00000001]
[1755198192664,5.16608978,193.57,193.51,8.62306196]
[1755198192834,37.38,193.56,193.52,8.47306196]
[1755198193158,37.38,193.56,193.52,8.62306196]
[1755198193159,63.38,193.56,193.52,8.62306196]
[1755198193338,63.38,193.56,193.52,8.47306196]
[1755198193848,38.08,193.56,193.51,8.47306196]
[1755198194049,64.08,193.56,193.51,8.47306196]
[1755198194737,5.16662361,193.55,193.51,8.47306196]
[1755198195740,5.16662361,193.55,193.51,8.62306196]
[1755198198355,5.86662361,193.55,193.51,8.47306196]
[1755198198730,5.86662361,193.55,193.5,1508.47306197]
[1755198199241,5.16662361,193.55,193.51,8.47306196]
[1755198200456,26.06,193.56,193.54,8.47306196]
[1755198200632,26.06,193.56,193.55,5.51734694]
[1755198200829,0.06,193.56,193.55,5.66734694]
[1755198202653,0.06,193.56,193.55,45.99687415]
[1755198202956,0.06,193.56,193.55,51.16349776]
[1755198203463,0.06,193.56,193.55,53.22988076]
[1755198205662,0.06,193.56,193.55,68.33609633]
[1755198206867,0.06,193.56,193.55,45.84687415]
[1755198207048,0.06,193.56,193.55,51.01349776]
[1755198207435,0.06,193.56,193.55,51.16349776]
[1755198208460,0.06,193.56,193.55,51.01349776]
[1755198208845,0.06,193.56,193.55,51.16349776]
[1755198209436,0.06,193.56,193.55,53.22988076]
[1755198209637,0.06,193.56,193.55,47.91325715]
[1755198209837,0.06,193.56,193.55,45.84687415]
[1755198210245,0.06,193.56,193.55,8.48687415]
[1755198210439,0.06,193.56,193.55,37.36]
[1755198210659,0.06,193.56,193.55,45.84687415]
[1755198211052,0.06,193.56,193.55,45.99687415]
[1755198211436,0.06,193.56,193.55,51.16349776]
[1755198212150,0.06,193.56,193.55,51.01349776]
[1755198212364,0.06,193.56,193.55,51.16349776]
[1755198213349,0.06,193.56,193.55,53.22987976]
[1755198214862,0.06,193.56,193.55,53.07987976]
[1755198215968,0.06,193.56,193.55,119.87987976]
[1755198216274,0.06,193.56,193.55,120.02987976]
[1755198216577,0.06,193.56,193.55,135.13609533]
[1755198217477,0.06,193.56,193.55,119.87987976]
[1755198218779,0.06,193.56,193.55,117.81349776]
[1755198219371,0.06,193.56,193.55,75.28687415]
[1755198219566,0.75,193.56,193.55,112.62687415]
[1755198220456,0.75,193.56,193.55,8.48687415]
[1755198220772,5.91640551,193.56,193.53,45.82687415]
[1755198221276,0.69,193.55,193.53,45.82687415]
[1755198221492,5.22640551,193.56,193.54,8.48687415]
[1755198221976,0.06,193.56,193.54,8.48687415]
[1755198222177,0.75,193.56,193.55,8.48687415]
[1755198222867,0.75,193.56,193.55,5.51755515]
[1755198223072,0.06,193.56,193.55,5.51755515]
[1755198223382,0.75,193.56,193.55,5.51755515]
[1755198223553,0.06,193.56,193.55,5.51755515]
[1755198223954,0.06,193.56,193.54,37.34]
[1755198224179,0.06,193.56,193.55,5.51755515]
[1755198226563,0.75,193.56,193.53,5.51755515]
[1755198227379,5.91652205,193.56,193.53,5.51755515]
[1755198227580,0.69,193.55,193.53,5.51755515]
[1755198228177,0.69,193.55,193.52,37.34]
[1755198228483,0.69,193.55,193.52,42.85755515]
[1755198228783,6.20755515,193.55,193.51,0.03]
[1755198229165,0.69,193.54,193.51,0.03]
[1755198229469,10.68471269,193.53,193.51,0.03]
[1755198229659,0.69,193.52,193.51,0.03]
[1755198230061,26.0,193.53,193.51,0.03]
[1755198230372,0.69,193.52,193.51,0.03]
[1755198231778,31.16716932,193.53,193.51,5.54755515]
[1755198231977,0.69,193.52,193.51,0.03]
[1755198232294,6.20755515,193.52,193.5,1500.00000001]
[1755198232462,0.69,193.52,193.5,1500.00000001]
[1755198232662,26.69,193.51,193.5,1500.00000001]
[1755198232862,26.0,193.51,193.5,1500.00000001]
[1755198233085,26.69,193.51,193.5,1500.00000001]
[1755198233469,31.85769159,193.51,193.5,1500.00000001]
[1755198234183,40.84238503,193.51,193.5,1500.00000001]
[1755198235599,35.32482988,193.51,193.5,1500.00000001]
[1755198236396,26.69,193.51,193.5,1500.00000001]
[1755198236697,31.85769159,193.51,193.5,1500.00000001]
[1755198237479,37.37524674,193.51,193.5,1500.00000001]
[1755198237968,31.85769159,193.51,193.5,1500.00000001]
[1755198240491,0.7,193.54,193.5,1500.00000001]
[1755198240789,5.22636162,193.56,193.53,5.51755515]
[1755198241091,0.06,193.56,193.54,5.51755515]
[1755198241574,0.06,193.56,193.55,5.51755515]
[1755198242372,0.06,193.56,193.54,5.51755515]
[1755198242686,0.06,193.56,193.53,42.85755515]
[1755198243602,0.06,193.56,193.53,5.51755515]
[1755198243794,0.06,193.56,193.51,37.34]
[1755198243795,0.7,193.55,193.51,5.51755515]
[1755198244105,0.7,193.54,193.51,5.51755515]
[1755198244408,0.06,193.56,193.52,5.51755515]
[1755198244580,0.06,193.56,193.53,5.51755515]
[1755198244787,0.06,193.56,193.54,5.51755515]
[1755198245612,0.06,193.55,193.54,5.51755515]
[1755198247591,0.06,193.55,193.54,42.85755515]
[1755198248192,0.06,193.55,193.54,48.02444571]
[1755198248780,0.06,193.55,193.54,42.85755515]
[1755198250406,0.06,193.55,193.54,48.02444571]
[1755198252510,0.06,193.55,193.54,42.85755515]
[1755198253186,0.06,193.55,193.54,37.34]
[1755198253391,0.06,193.55,193.54,42.85755515]
[1755198255007,0.76,193.55,193.54,42.85755515]
[1755198255512,0.76,193.55,193.54,5.51755515]
[1755198255905,0.06,193.55,193.54,5.51755515]
[1755198257012,0.06,193.55,193.53,37.32]
[1755198257013,0.76,193.55,193.53,37.32]
[1755198257189,0.7,193.54,193.53,5.51755515]
[1755198257395,0.7,193.54,193.52,5.51755515]
[1755198257730,0.7,193.54,193.53,5.51755515]
[1755198258501,0.06,193.55,193.53,5.51755515]
[1755198258701,0.76,193.55,193.53,5.51755515]
[1755198259093,0.76,193.55,193.54,5.51755515]
[1755198259296,0.06,193.55,193.54,5.51755515]
[1755198260301,0.76,193.55,193.54,5.51755515]
[1755198262614,0.06,193.55,193.54,5.51755515]
[1755198265006,0.06,193.55,193.54,10.68444571]
[1755198265207,0.06,193.55,193.54,10.86444571]
[1755198267518,0.06,193.56,193.54,10.86444571]
[1755198267716,0.06,193.56,193.55,48.68084112]
[1755198268323,0.06,193.56,193.55,50.74722412]
[1755198269930,0.06,193.56,193.55,50.23056176]
[1755198270623,0.06,193.56,193.55,47.98417876]
[1755198271011,0.06,193.56,193.55,42.81755515]
[1755198271210,0.73,193.56,193.55,42.81755515]
[1755198272702,0.73,193.56,193.55,5.51755515]
[1755198273521,0.06,193.56,193.55,5.51755515]
[1755198274228,0.06,193.56,193.55,42.81755515]
[1755198274429,0.73,193.56,193.55,42.81755515]
[1755198274609,0.73,193.56,193.55,5.51755515]
[1755198275428,0.06,193.56,193.55,5.51755515]
[1755198276198,0.06,193.56,193.55,10.68417876]
[1755198276425,0.06,193.56,193.55,10.86417876]
[1755198276815,0.06,193.56,193.55,12.93066776]
[1755198277730,0.06,193.56,193.55,12.75066776]
[1755198278330,0.06,193.56,193.55,12.93066776]
[1755198279603,0.06,193.56,193.55,10.68417876]
[1755198279808,0.06,193.58,193.55,10.86417876]
[1755198280003,0.06,193.58,193.57,5.51755515]
[1755198281410,0.06,193.58,193.57,10.68364493]
[1755198281726,0.06,193.58,193.57,47.96364493]
[1755198282711,0.06,193.58,193.57,54.17780905]
[1755198283516,0.06,193.58,193.57,56.24408505]
[1755198283717,0.06,193.6,193.57,71.35030062]
[1755198283920,0.06,193.6,193.59,5.51755515]
[1755198284245,0.06,193.6,193.59,42.97755515]
[1755198284412,0.06,193.6,193.59,47.96311122]
[1755198285217,0.06,193.6,193.59,50.02917322]
[1755198289120,0.06,193.61,193.59,50.02917322]
[1755198289320,0.06,193.61,193.6,5.51755515]
[1755198290218,0.06,193.61,193.6,10.6828444]
[1755198290418,0.06,193.61,193.6,12.7486934]
[1755198290640,0.06,193.61,193.6,10.6828444]
[1755198291216,0.73,193.61,193.6,10.6828444]
[1755198291415,0.73,193.61,193.56,26.0]
[1755198291638,0.73,193.61,193.59,5.51755515]
[1755198291817,0.73,193.61,193.57,5.51755515]
[1755198292215,5.16528925,193.6,193.57,5.51755515]
[1755198292419,0.67,193.59,193.58,5.51755515]
[1755198294519,0.67,193.59,193.58,42.75755515]
[1755198300449,0.06,193.61,193.59,15.10621557]
[1755198300757,0.06,193.64,193.63,26.0]
[1755198300929,0.06,193.66,193.64,15.10621557]
[1755198301136,0.06,193.68,193.65,43.4539507]
[1755198301342,0.06,193.68,193.67,5.51755515]
[1755198301628,0.73,193.68,193.67,42.75755515]
[1755198302150,0.06,193.68,193.67,42.75755515]
[1755198302727,0.73,193.68,193.67,42.75755515]
[1755198302950,0.06,193.68,193.67,47.92097746]
[1755198303336,0.73,193.68,193.67,47.92097746]
[1755198304760,0.73,193.68,193.67,5.51755515]
[1755198304961,0.73,193.68,193.67,37.22]
[1755198305139,0.73,193.68,193.66,5.51755515]
[1755198305332,0.06,193.68,193.67,5.51755515]
[1755198305531,0.06,193.68,193.66,5.51755515]
[1755198306031,0.67,193.67,193.66,5.51755515]
[1755198307187,0.67,193.67,193.65,37.22]
[1755198307329,0.06,193.68,193.66,5.51755515]
[1755198307532,0.06,193.68,193.67,5.51755515]
[1755198307751,0.06,193.68,193.67,42.73755515]
[1755198308656,0.06,193.68,193.67,47.90097746]
[1755198309055,0.06,193.68,193.67,48.08097746]
[1755198309930,0.06,193.7,193.68,15.10621557]
[1755198310136,0.06,193.72,193.69,63.36132587]
[1755198310359,0.06,193.72,193.71,20.62377072]
[1755198310553,0.06,193.72,193.71,42.73755515]
[1755198310750,0.06,193.72,193.71,47.89991124]
[1755198311839,0.06,193.72,193.71,63.18612681]
[1755198313346,0.06,193.72,193.71,94.16612681]
[1755198313545,0.1,193.75,193.71,79.05991124]
[1755198313857,0.1,193.75,193.73,5.51755515]
[1755198314051,0.1,193.75,193.73,42.71755515]
[1755198314868,0.73,193.74,193.73,42.71755515]
[1755198315363,0.06,193.74,193.73,42.71755515]
[1755198315567,0.73,193.74,193.73,42.71755515]
[1755198315943,0.73,193.74,193.73,5.51755515]
[1755198316147,0.73,193.74,193.64,0.18]
[1755198316148,0.73,193.74,193.7,5.51755515]
[1755198317153,0.73,193.74,193.71,5.51755515]
[1755198317678,0.73,193.74,193.69,37.2]
[1755198317679,5.16182315,193.73,193.7,5.51755515]
[1755198317871,0.67,193.72,193.69,42.71755515]
[1755198320157,5.8321302,193.72,193.7,5.51755515]
[1755198320362,0.67,193.71,193.7,5.51755515]
[1755198320671,0.67,193.71,193.69,42.71755515]
[1755198320970,0.67,193.7,193.69,42.71755515]
[1755198321178,0.67,193.7,193.67,42.69755515]
[1755198322957,0.67,193.69,193.68,5.51755515]
[1755198323355,0.67,193.69,193.67,42.69755515]
[1755198323647,0.67,193.68,193.67,42.69755515]
[1755198323856,5.83246877,193.71,193.67,42.69755515]
[1755198324057,0.67,193.73,193.7,5.51755515]
[1755198324367,0.73,193.74,193.72,5.51755515]
[1755198324568,0.73,193.74,193.73,5.51755515]
[1755198325566,15.10621557,193.73,193.68,5.51755515]
[1755198325752,0.67,193.72,193.68,5.51755515]
[1755198326070,0.67,193.72,193.69,5.51755515]
[1755198326265,0.67,193.72,193.7,5.51755515]
[1755198326448,5.89162028,193.74,193.71,5.51755515]
[1755198326652,0.67,193.73,193.7,5.51755515]
[1755198327356,5.22162028,193.74,193.7,5.51755515]
[1755198327557,0.67,193.72,193.7,5.51755515]
[1755198327860,0.67,193.72,193.71,5.51755515]
[1755198328061,0.06,193.74,193.71,5.51755515]
[1755198328252,26.06,193.74,193.73,5.51755515]
[1755198328454,26.06,193.74,193.72,5.51755515]
[1755198328747,0.67,193.73,193.72,5.51755515]
[1755198329072,0.06,193.74,193.72,5.51755515]
[1755198329474,0.73,193.74,193.69,42.34283123]
[1755198329776,0.73,193.74,193.72,5.51755515]
[1755198330660,0.67,193.73,193.71,5.51755515]
[1755198331751,0.06,193.74,193.72,5.51755515]
[1755198332157,0.06,193.74,193.73,5.51755515]
[1755198332865,0.06,193.74,193.73,5.69755515]
[1755198333368,0.06,193.74,193.73,5.51755515]
[1755198333571,0.73,193.74,193.69,37.18]
[1755198333881,0.73,193.74,193.69,42.69755515]
[1755198333882,5.16208961,193.72,193.69,42.69755515]
[1755198334377,0.67,193.71,193.69,42.69755515]
[1755198334574,5.16208961,193.72,193.69,42.69755515]
[1755198334575,0.67,193.7,193.69,42.69755515]
[1755198334767,0.67,193.7,193.68,0.03]
[1755198335873,15.10621557,193.71,193.68,0.03]
[1755198336058,0.67,193.69,193.68,0.03]
[1755198336263,15.10621557,193.71,193.68,5.54755515]
[1755198336567,0.67,193.69,193.68,0.03]
[1755198337456,0.67,193.69,193.68,5.54755515]
[1755198337991,0.67,193.69,193.68,0.03]
[1755198338160,5.83288915,193.69,193.68,0.03]
[1755198338682,0.67,193.69,193.68,0.03]
[1755198339056,20.93910472,193.69,193.68,0.03]
[1755198339703,26.45665987,193.69,193.68,0.03]
[1755198339989,26.45665987,193.69,193.67,0.03]
[1755198339990,46.26937129,193.68,193.67,0.03]